{"text_format":"1","workbook":"xlsx","n_sheets":1,"sheets":["Лист1"],"not_rendered":{"charts":0,"images":0,"macros":0,"external_links":0,"defined_names":0,"comments":0,"pivot_tables":0},"unopened":[],"bounds":{"document_bytes":16777216,"sheet_cells":100000,"rows_first":2000,"rows_last":500,"rows_between":2000,"halvings":0,"cell_chars":16384,"cell_head_chars":4096},"cells_cut":0,"cells_raw":0,"read":"whole","date_system":"1900"}

{"sheet":"Лист1","index":0,"n_rows":53,"n_cols":12,"rows_kept":53,"cut":false,"hidden":false,"merged":[]}
[{"$f":"IF(INDEX($D$1:$D$500,4*(COLUMN()+1)+ROW()-1),\"В ячейке \"&CELL(\"адрес\",INDEX($D$1:$D$500,4*(COLUMN()+1)+ROW()-1))&\" есть значение\",\"\")","v":"В ячейке $D$8 есть значение"},{"$f":"IF(INDEX($D$1:$D$500,4*(COLUMN()+1)+ROW()-1),\"В ячейке \"&CELL(\"адрес\",INDEX($D$1:$D$500,4*(COLUMN()+1)+ROW()-1))&\" есть значение\",\"\")","v":""},"","","","","","В ячейке $D$36 есть значение","","В ячейке $D$44 есть значение","В ячейке $D$48 есть значение","В ячейке $D$52 есть значение"]
[{"$f":"IF(INDEX($D$1:$D$500,4*(COLUMN()+1)+ROW()-1),\"В ячейке \"&CELL(\"адрес\",INDEX($D$1:$D$500,4*(COLUMN()+1)+ROW()-1))&\" есть значение\",\"\")","v":""},"В ячейке $D$13 есть значение","","","","В ячейке $D$29 есть значение","","","","В ячейке $D$45 есть значение","В ячейке $D$49 есть значение","В ячейке $D$53 есть значение"]
["В ячейке $D$10 есть значение","","","","","","","","","В ячейке $D$46 есть значение","В ячейке $D$50 есть значение",""]
["","В ячейке $D$15 есть значение","","","","","","","В ячейке $D$43 есть значение","В ячейке $D$47 есть значение","В ячейке $D$51 есть значение",""]
[]
[]
[]
[null,null,null,2]
[]
[null,null,null,5]
[]
[]
[null,null,null,6]
[]
[null,null,null,8]
[]
[]
[]
[]
[]
[]
[]
[]
[]
[]
[]
[]
[]
[null,null,null,4]
[]
[]
[]
[]
[]
[]
[null,null,null,1]
[]
[]
[]
[]
[]
[]
[null,null,null,1]
[null,null,null,1]
[null,null,null,1]
[null,null,null,1]
[null,null,null,1]
[null,null,null,1]
[null,null,null,1]
[null,null,null,1]
[null,null,null,1]
[null,null,null,1]
[null,null,null,1]